[Event "*** Titled Tuesday Blitz"]
[Site "Chess.com"]
[Date "2019.05.07"]
[Round "3"]
[White "Rap_woyska"]
[Black "korason34"]
[Result "1/2-1/2"]
[WhiteElo "2414"]
[BlackElo "2583"]
[TimeControl "180+2"]
[EndTime "13:39:04 PDT"]
[Termination "Game drawn by repetition"]

1. c4 {[%clk 0:03:01.9]} 1... g6 {[%clk 0:02:58.9]} 2. Nf3 {[%clk 0:03:02.4]}
2... Bg7 {[%clk 0:03:00.2]} 3. Nc3 {[%clk 0:03:04.3]} 3... d6 {[%clk 0:03:00.7]}
4. d4 {[%clk 0:03:03.9]} 4... Nc6 {[%clk 0:03:01.8]} 5. g3 {[%clk 0:02:47.6]}
5... Bg4 {[%clk 0:02:59.5]} 6. d5 {[%clk 0:02:48]} 6... Ne5 {[%clk 0:02:25.7]}
7. Bg2 {[%clk 0:02:46.1]} 7... h5 {[%clk 0:02:08.6]} 8. O-O {[%clk 0:02:40.9]}
8... Qd7 {[%clk 0:02:03.7]} 9. Nd2 {[%clk 0:02:11.4]} 9... Bh3 {[%clk
0:01:54.9]} 10. f4 {[%clk 0:01:28]} 10... Bxg2 {[%clk 0:01:46.7]} 11. Kxg2
{[%clk 0:01:29.9]} 11... Ng4 {[%clk 0:01:29.3]} 12. Nf3 {[%clk 0:01:30.1]} 12...
f5 {[%clk 0:01:19.5]} 13. h3 {[%clk 0:01:25.5]} 13... N4h6 {[%clk 0:01:12.9]}
14. Be3 {[%clk 0:01:23]} 14... Nf6 {[%clk 0:01:11.4]} 15. Bd4 {[%clk 0:01:24.1]}
15... O-O {[%clk 0:00:52.8]} 16. Ng5 {[%clk 0:01:22.6]} 16... c5 {[%clk
0:00:50.3]} 17. Bg1 {[%clk 0:01:11.6]} 17... Nf7 {[%clk 0:00:45.6]} 18. Ne6
{[%clk 0:01:11.9]} 18... Rfc8 {[%clk 0:00:43.7]} 19. Nxg7 {[%clk 0:01:09.7]}
19... Kxg7 {[%clk 0:00:44.4]} 20. Re1 {[%clk 0:01:08.5]} 20... e6 {[%clk
0:00:45.3]} 21. e4 {[%clk 0:01:09.4]} 21... fxe4 {[%clk 0:00:43.4]} 22. Nxe4
{[%clk 0:01:07.3]} 22... Nxe4 {[%clk 0:00:44.3]} 23. Rxe4 {[%clk 0:01:09.2]}
23... exd5 {[%clk 0:00:44.5]} 24. Qxd5 {[%clk 0:01:10.4]} 24... Re8 {[%clk
0:00:41]} 25. Rae1 {[%clk 0:01:09.2]} 25... Rxe4 {[%clk 0:00:40.1]} 26. Rxe4
{[%clk 0:01:11.1]} 26... Re8 {[%clk 0:00:35.8]} 27. Be3 {[%clk 0:01:03.5]} 27...
Rxe4 {[%clk 0:00:33.7]} 28. Qxe4 {[%clk 0:01:05.4]} 28... b5 {[%clk 0:00:29.2]}
29. Bd2 {[%clk 0:00:47.7]} 29... bxc4 {[%clk 0:00:22.3]} 30. Bc3+ {[%clk
0:00:48.1]} 30... Kh7 {[%clk 0:00:21.4]} 31. Qd5 {[%clk 0:00:46.2]} 31... Kg8
{[%clk 0:00:21.1]} 32. Kf3 {[%clk 0:00:39.8]} 32... Qxh3 {[%clk 0:00:21.4]} 33.
Qa8+ {[%clk 0:00:20.7]} 33... Kh7 {[%clk 0:00:22.3]} 34. Qf8 {[%clk 0:00:22.1]}
34... Qf1+ {[%clk 0:00:19.6]} 35. Ke3 {[%clk 0:00:23.6]} 35... Qd3+ {[%clk
0:00:16.4]} 36. Kf2 {[%clk 0:00:24.5]} 36... Qc2+ {[%clk 0:00:16.7]} 37. Kf3
{[%clk 0:00:23.6]} 37... Qd1+ {[%clk 0:00:16.7]} 38. Kf2 {[%clk 0:00:24.6]}
38... Qc2+ {[%clk 0:00:17.6]} 39. Kf1 {[%clk 0:00:25.5]} 39... Qd1+ {[%clk
0:00:18.6]} 40. Kf2 {[%clk 0:00:26.8]} 40... Qc2+ {[%clk 0:00:19.9]} 41. Kf1
{[%clk 0:00:27.5]} 41... Qd1+ {[%clk 0:00:20.3]} 42. Kf2 {[%clk 0:00:29]} 42...
Qc2+ {[%clk 0:00:21.2]} 1/2-1/2

[Event "*** Titled Tuesday Blitz"]
[Site "Chess.com"]
[Date "2019.05.07"]
[Round "3"]
[White "Tash_Boy"]
[Black "DrBergerBerger"]
[Result "1-0"]
[WhiteElo "2629"]
[BlackElo "2409"]
[TimeControl "180+2"]
[EndTime "13:39:06 PDT"]
[Termination "Tash_Boy won on time"]

1. e4 {[%clk 0:03:01.9]} 1... e6 {[%clk 0:03:00.5]} 2. d4 {[%clk 0:03:02.1]}
2... d5 {[%clk 0:03:01.8]} 3. Nd2 {[%clk 0:03:04]} 3... c5 {[%clk 0:03:02]} 4.
Ngf3 {[%clk 0:03:04.6]} 4... cxd4 {[%clk 0:03:02.3]} 5. Nxd4 {[%clk 0:03:06.5]}
5... Nc6 {[%clk 0:03:03.4]} 6. Nxc6 {[%clk 0:03:02.9]} 6... bxc6 {[%clk
0:03:05.3]} 7. Bd3 {[%clk 0:03:04.2]} 7... Bd6 {[%clk 0:03:04.6]} 8. O-O {[%clk
0:03:04.9]} 8... Ne7 {[%clk 0:03:04]} 9. Qe2 {[%clk 0:03:05.3]} 9... Ng6 {[%clk
0:03:03.1]} 10. g3 {[%clk 0:03:03.6]} 10... O-O {[%clk 0:02:53.8]} 11. f4 {[%clk
0:03:02]} 11... f5 {[%clk 0:02:52.2]} 12. exd5 {[%clk 0:02:57.5]} 12... exd5
{[%clk 0:02:49.3]} 13. Nf3 {[%clk 0:02:57.6]} 13... Re8 {[%clk 0:02:44.7]} 14.
Qg2 {[%clk 0:02:54.8]} 14... Ba6 {[%clk 0:02:39.5]} 15. Bxa6 {[%clk 0:02:52.1]}
15... Qb6+ {[%clk 0:02:39.5]} 16. Kh1 {[%clk 0:02:52.9]} 16... Qxa6 {[%clk
0:02:39.9]} 17. Bd2 {[%clk 0:02:50.3]} 17... Re4 {[%clk 0:02:22.2]} 18. Qh3
{[%clk 0:02:40.6]} 18... Rf8 {[%clk 0:01:54.2]} 19. Ng5 {[%clk 0:02:35.7]} 19...
h6 {[%clk 0:01:52.2]} 20. Nxe4 {[%clk 0:02:35.8]} 20... dxe4 {[%clk 0:01:52.3]}
21. Rfd1 {[%clk 0:02:34.3]} 21... Bc5 {[%clk 0:01:49.4]} 22. Qf1 {[%clk
0:02:34.5]} 22... Qb6 {[%clk 0:01:43.7]} 23. Bc3 {[%clk 0:02:30.9]} 23... Ne7
{[%clk 0:01:17.8]} 24. Rd7 {[%clk 0:02:27]} 24... Rf7 {[%clk 0:00:56.3]} 25. b4
{[%clk 0:02:03.5]} 25... Bf2 {[%clk 0:00:51.7]} 26. Be1 {[%clk 0:01:33.4]} 26...
Bd4 {[%clk 0:00:42.7]} 27. Rd1 {[%clk 0:01:26.5]} 27... Nd5 {[%clk 0:00:42.9]}
28. Rxf7 {[%clk 0:01:25]} 28... Kxf7 {[%clk 0:00:44.8]} 29. Qc4 {[%clk
0:01:23.5]} 29... Bf6 {[%clk 0:00:38.3]} 30. b5 {[%clk 0:01:22.1]} 30... Qe3
{[%clk 0:00:30.4]} 31. Qf1 {[%clk 0:01:18.9]} 31... Qc5 {[%clk 0:00:13.6]} 32.
bxc6 {[%clk 0:01:06.3]} 32... Qxc6 {[%clk 0:00:15.5]} 33. Qe2 {[%clk 0:00:57]}
33... Kg6 {[%clk 0:00:11.3]} 34. c4 {[%clk 0:00:53.9]} 34... Nb6 {[%clk
0:00:10.4]} 35. Rc1 {[%clk 0:00:53.1]} 35... e3+ {[%clk 0:00:09]} 36. Kg1 {[%clk
0:00:39.2]} 36... Bd4 {[%clk 0:00:08.8]} 37. c5 {[%clk 0:00:34.7]} 37... Nd5
{[%clk 0:00:08.8]} 38. Qc4 {[%clk 0:00:32.5]} 1-0

[Event "*** Titled Tuesday Blitz"]
[Site "Chess.com"]
[Date "2019.05.07"]
[Round "3"]
[White "MITerryble"]
[Black "SaraciNderim"]
[Result "0-1"]
[WhiteElo "2808"]
[BlackElo "2746"]
[TimeControl "180+2"]
[EndTime "13:39:07 PDT"]
[Termination "SaraciNderim won by resignation"]

1. d4 {[%clk 0:03:01.9]} 1... Nf6 {[%clk 0:02:58.5]} 2. Nf3 {[%clk 0:03:02.9]}
2... g6 {[%clk 0:02:58.8]} 3. Bg5 {[%clk 0:03:03.9]} 3... Bg7 {[%clk 0:02:59.6]}
4. Nbd2 {[%clk 0:03:05]} 4... d5 {[%clk 0:02:59.5]} 5. c3 {[%clk 0:03:06.3]}
5... c6 {[%clk 0:02:59.8]} 6. e3 {[%clk 0:03:07.5]} 6... Bf5 {[%clk 0:03:00.9]}
7. Qb3 {[%clk 0:03:08.3]} 7... Qb6 {[%clk 0:03:01.5]} 8. Be2 {[%clk 0:03:04.6]}
8... Nbd7 {[%clk 0:03:02.3]} 9. O-O {[%clk 0:03:05.7]} 9... O-O {[%clk
0:03:02.7]} 10. Nh4 {[%clk 0:03:06.2]} 10... Rfe8 {[%clk 0:02:53.8]} 11. Nxf5
{[%clk 0:03:06.8]} 11... gxf5 {[%clk 0:02:55.7]} 12. Bh4 {[%clk 0:02:50.1]}
12... Ne4 {[%clk 0:02:54.4]} 13. Rfd1 {[%clk 0:02:44.3]} 13... Nxd2 {[%clk
0:02:54.3]} 14. Rxd2 {[%clk 0:02:45.3]} 14... Qxb3 {[%clk 0:02:55.1]} 15. axb3
{[%clk 0:02:46]} 15... e6 {[%clk 0:02:56]} 16. Ra4 {[%clk 0:02:33.7]} 16... a6
{[%clk 0:02:56.5]} 17. Rd1 {[%clk 0:02:34.8]} 17... Nf6 {[%clk 0:02:53.4]} 18.
Bd3 {[%clk 0:02:17.9]} 18... Rac8 {[%clk 0:02:53.9]} 19. f3 {[%clk 0:02:12.9]}
19... Nd7 {[%clk 0:02:48]} 20. Re1 {[%clk 0:02:08.1]} 20... Nf8 {[%clk
0:02:44.7]} 21. Bg3 {[%clk 0:02:02.5]} 21... Ng6 {[%clk 0:02:45.4]} 22. e4
{[%clk 0:02:02.9]} 22... fxe4 {[%clk 0:02:37.2]} 23. fxe4 {[%clk 0:02:04.8]}
23... Red8 {[%clk 0:02:27.8]} 24. e5 {[%clk 0:01:40]} 24... c5 {[%clk
0:02:18.7]} 25. dxc5 {[%clk 0:01:41.9]} 25... Rxc5 {[%clk 0:02:17.9]} 26. Rg4
{[%clk 0:01:38]} 26... Kf8 {[%clk 0:01:49.6]} 27. h4 {[%clk 0:01:32.8]} 27... d4
{[%clk 0:01:37.4]} 28. cxd4 {[%clk 0:01:27]} 28... Rcd5 {[%clk 0:01:36]} 29. Bf2
{[%clk 0:00:51.3]} 29... Nxe5 {[%clk 0:01:30.5]} 30. dxe5 {[%clk 0:00:51.4]}
30... Rxd3 {[%clk 0:01:28.8]} 31. Bc5+ {[%clk 0:00:48]} 31... Kg8 {[%clk
0:01:26.6]} 32. h5 {[%clk 0:00:48.4]} 32... h6 {[%clk 0:01:10.2]} 33. Bd6 {[%clk
0:00:41.9]} 33... Kh7 {[%clk 0:01:07.3]} 34. Rf1 {[%clk 0:00:37]} 34... Rd7
{[%clk 0:01:07.8]} 35. b4 {[%clk 0:00:27.4]} 35... Rd5 {[%clk 0:01:06.2]} 36.
Rgf4 {[%clk 0:00:24.4]} 36... Kg8 {[%clk 0:00:46.5]} 37. Rg4 {[%clk 0:00:24.8]}
37... b5 {[%clk 0:00:43.2]} 38. Rf3 {[%clk 0:00:24.3]} 38... Kh7 {[%clk
0:00:43.4]} 39. Rfg3 {[%clk 0:00:23.3]} 39... f5 {[%clk 0:00:42.5]} 40. exf6
{[%clk 0:00:18.3]} 40... Bxf6 {[%clk 0:00:43.4]} 41. Bf4 {[%clk 0:00:19]} 41...
Rxh5 {[%clk 0:00:43.2]} 42. Rg6 {[%clk 0:00:17.6]} 42... Bd4+ {[%clk 0:00:42.7]}
43. Kf1 {[%clk 0:00:18.2]} 43... Rf7 {[%clk 0:00:43.7]} 44. Rf3 {[%clk 0:00:19]}
44... Kxg6 {[%clk 0:00:44.1]} 0-1

[Event "*** Titled Tuesday Blitz"]
[Site "Chess.com"]
[Date "2019.05.07"]
[Round "3"]
[White "GremioPrudente"]
[Black "Siemba"]
[Result "1-0"]
[WhiteElo "2122"]
[BlackElo "2102"]
[TimeControl "180+2"]
[EndTime "13:39:07 PDT"]
[Termination "GremioPrudente won by checkmate"]

1. Nf3 {[%clk 0:03:01.9]} 1... Nf6 {[%clk 0:02:59.2]} 2. d4 {[%clk 0:03:02]}
2... g6 {[%clk 0:03:00]} 3. c4 {[%clk 0:03:02.9]} 3... Bg7 {[%clk 0:02:59.3]} 4.
Nc3 {[%clk 0:03:04.8]} 4... d6 {[%clk 0:02:57.8]} 5. Bg5 {[%clk 0:03:03.7]} 5...
O-O {[%clk 0:02:52.9]} 6. e3 {[%clk 0:03:04.8]} 6... b6 {[%clk 0:02:45.3]} 7.
Be2 {[%clk 0:02:58.9]} 7... Bb7 {[%clk 0:02:39.3]} 8. O-O {[%clk 0:02:59.9]}
8... Nbd7 {[%clk 0:02:39.4]} 9. Rc1 {[%clk 0:02:48.1]} 9... h6 {[%clk
0:02:36.6]} 10. Bh4 {[%clk 0:02:44.2]} 10... c5 {[%clk 0:02:30.6]} 11. d5 {[%clk
0:02:36.4]} 11... a6 {[%clk 0:02:29]} 12. a4 {[%clk 0:02:36.5]} 12... Qc7 {[%clk
0:02:29]} 13. Qd3 {[%clk 0:02:28.1]} 13... e6 {[%clk 0:02:28]} 14. dxe6 {[%clk
0:02:21.7]} 14... fxe6 {[%clk 0:02:29.9]} 15. Bg3 {[%clk 0:02:15.2]} 15... e5
{[%clk 0:02:16.2]} 16. Qxg6 {[%clk 0:02:06.9]} 16... Rae8 {[%clk 0:02:05]} 17.
Nh4 {[%clk 0:01:56.3]} 17... Qc6 {[%clk 0:01:21.9]} 18. Bf3 {[%clk 0:01:48]}
18... e4 {[%clk 0:01:21.8]} 19. Be2 {[%clk 0:01:42.4]} 19... Ne5 {[%clk
0:01:08.2]} 20. Bxe5 {[%clk 0:01:41.7]} 20... Rxe5 {[%clk 0:01:10.1]} 21. f4
{[%clk 0:01:42.8]} 21... exf3 {[%clk 0:01:03]} 22. Bxf3 {[%clk 0:01:40.8]} 22...
Qd7 {[%clk 0:00:57.6]} 23. Bxb7 {[%clk 0:01:40]} 23... Qxb7 {[%clk 0:00:59.5]}
24. Nf5 {[%clk 0:01:41.1]} 24... Rxf5 {[%clk 0:00:36]} 25. Rxf5 {[%clk 0:01:40]}
25... Qe7 {[%clk 0:00:37.9]} 26. Rf3 {[%clk 0:01:35.3]} 26... Nd7 {[%clk
0:00:19.9]} 27. Rxf8+ {[%clk 0:01:29.8]} 27... Nxf8 {[%clk 0:00:21.8]} 28. Qe4
{[%clk 0:01:26.6]} 28... Qg5 {[%clk 0:00:21.2]} 29. Qf4 {[%clk 0:01:21.8]} 29...
Qg6 {[%clk 0:00:18.2]} 30. Rf1 {[%clk 0:01:22.1]} 30... Ne6 {[%clk 0:00:17.6]}
31. Qf5 {[%clk 0:01:20.8]} 31... Qe8 {[%clk 0:00:15.7]} 32. Nd5 {[%clk
0:01:19.4]} 32... Ng5 {[%clk 0:00:14.4]} 33. Nf6+ {[%clk 0:01:18.7]} 33... Bxf6
{[%clk 0:00:15.8]} 34. Qxf6 {[%clk 0:01:20.2]} 34... Qxe3+ {[%clk 0:00:17.7]}
35. Kh1 {[%clk 0:01:20.5]} 35... Qe8 {[%clk 0:00:06.7]} 36. Qxd6 {[%clk
0:01:17.3]} 36... Ne6 {[%clk 0:00:06.5]} 37. Re1 {[%clk 0:01:14.3]} 37... Kf7
{[%clk 0:00:05.6]} 38. Rf1+ {[%clk 0:01:11.2]} 38... Kg8 {[%clk 0:00:06.3]} 39.
Qg3+ {[%clk 0:01:11.3]} 39... Ng5 {[%clk 0:00:06.3]} 40. Qf4 {[%clk 0:01:02.9]}
40... Qe2 {[%clk 0:00:03.7]} 41. Qf8+ {[%clk 0:01:02.4]} 41... Kh7 {[%clk
0:00:05.2]} 42. Qf5+ {[%clk 0:01:03.6]} 42... Kg8 {[%clk 0:00:06.1]} 43. b3
{[%clk 0:00:57]} 43... Ne4 {[%clk 0:00:03.2]} 44. Qg6+ {[%clk 0:00:52.5]} 44...
Kh8 {[%clk 0:00:02.8]} 45. Rf8# {[%clk 0:00:52.9]} 1-0

[Event "*** Titled Tuesday Blitz"]
[Site "Chess.com"]
[Date "2019.05.07"]
[Round "3"]
[White "pedroholly22"]
[Black "Hikaru"]
[Result "0-1"]
[WhiteElo "2275"]
[BlackElo "3205"]
[TimeControl "180+2"]
[EndTime "13:39:10 PDT"]
[Termination "Hikaru won by resignation"]

1. e4 {[%clk 0:02:52.7]} 1... e5 {[%clk 0:02:52.8]} 2. Nf3 {[%clk 0:02:49.4]}
2... Nc6 {[%clk 0:02:53.6]} 3. Bb5 {[%clk 0:02:44.8]} 3... a6 {[%clk 0:02:46.3]}
4. Ba4 {[%clk 0:02:44.7]} 4... Nf6 {[%clk 0:02:41]} 5. O-O {[%clk 0:02:44.2]}
5... Be7 {[%clk 0:02:40.3]} 6. Re1 {[%clk 0:02:44]} 6... b5 {[%clk 0:02:25.9]}
7. Bb3 {[%clk 0:02:42.8]} 7... d6 {[%clk 0:02:26.6]} 8. c3 {[%clk 0:02:39.9]}
8... O-O {[%clk 0:02:25.8]} 9. h3 {[%clk 0:02:39.3]} 9... Nb8 {[%clk 0:02:18]}
10. d4 {[%clk 0:02:38.9]} 10... Nbd7 {[%clk 0:02:18.9]} 11. Nbd2 {[%clk
0:02:38.9]} 11... Bb7 {[%clk 0:02:08.5]} 12. Bc2 {[%clk 0:02:38.2]} 12... c5
{[%clk 0:02:09.2]} 13. d5 {[%clk 0:02:38.7]} 13... c4 {[%clk 0:02:07.8]} 14. Nf1
{[%clk 0:02:22.4]} 14... Re8 {[%clk 0:02:07.7]} 15. Ng3 {[%clk 0:02:17.5]} 15...
Nc5 {[%clk 0:02:07.7]} 16. Be3 {[%clk 0:02:16.3]} 16... Nfd7 {[%clk 0:02:08.4]}
17. Qd2 {[%clk 0:02:12.4]} 17... g6 {[%clk 0:02:09]} 18. a4 {[%clk 0:02:10.8]}
18... Bf8 {[%clk 0:02:09.1]} 19. Nh2 {[%clk 0:02:04]} 19... h5 {[%clk
0:02:08.8]} 20. f4 {[%clk 0:01:51.8]} 20... h4 {[%clk 0:02:00.8]} 21. Ngf1
{[%clk 0:01:51.2]} 21... exf4 {[%clk 0:02:01.3]} 22. Bxf4 {[%clk 0:01:50.2]}
22... Ne5 {[%clk 0:02:02.6]} 23. axb5 {[%clk 0:01:45.4]} 23... axb5 {[%clk
0:02:02.5]} 24. Bxe5 {[%clk 0:01:37.7]} 24... dxe5 {[%clk 0:01:56.1]} 25. Ng4
{[%clk 0:01:21.7]} 25... Nd7 {[%clk 0:01:52.3]} 26. Kh1 {[%clk 0:01:15.5]} 26...
Rxa1 {[%clk 0:01:51.4]} 27. Rxa1 {[%clk 0:01:15]} 27... Nf6 {[%clk 0:01:50.9]}
28. Nxf6+ {[%clk 0:01:04.4]} 28... Qxf6 {[%clk 0:01:52.8]} 29. Ne3 {[%clk
0:00:49.6]} 29... Qg5 {[%clk 0:01:50.2]} 30. Nf1 {[%clk 0:00:43.4]} 30... Qd8
{[%clk 0:01:40.2]} 31. Ne3 {[%clk 0:00:43.4]} 31... Bc8 {[%clk 0:01:41.3]} 32.
Qe2 {[%clk 0:00:43.3]} 32... Bh6 {[%clk 0:01:42.2]} 33. Ng4 {[%clk 0:00:43.2]}
33... Bf4 {[%clk 0:01:43.3]} 34. Nh2 {[%clk 0:00:41]} 34... Kg7 {[%clk
0:01:41.8]} 35. Nf3 {[%clk 0:00:41.1]} 35... Qf6 {[%clk 0:01:42.3]} 36. Qf2
{[%clk 0:00:39.9]} 36... Bg3 {[%clk 0:01:42.5]} 37. Qe2 {[%clk 0:00:40]} 37...
Bd7 {[%clk 0:01:42.2]} 38. Rf1 {[%clk 0:00:39.5]} 38... Qd6 {[%clk 0:01:41.5]}
39. Nh2 {[%clk 0:00:39.1]} 39... Ra8 {[%clk 0:01:41.7]} 40. Ng4 {[%clk
0:00:39.1]} 40... Bf4 {[%clk 0:01:35.1]} 41. Ne3 {[%clk 0:00:37.5]} 41... Ra2
{[%clk 0:01:35.1]} 42. Bb1 {[%clk 0:00:34.3]} 42... Ra1 {[%clk 0:01:35.8]} 43.
Bc2 {[%clk 0:00:34]} 43... Rxf1+ {[%clk 0:01:36.4]} 44. Nxf1 {[%clk 0:00:33.4]}
44... Qa6 {[%clk 0:01:37.4]} 45. b3 {[%clk 0:00:31.2]} 45... cxb3 {[%clk
0:01:23.6]} 46. Bxb3 {[%clk 0:00:31.8]} 46... Qa1 {[%clk 0:01:24.7]} 47. Qd3
{[%clk 0:00:28]} 47... f5 {[%clk 0:01:23.2]} 48. Kg1 {[%clk 0:00:21.2]} 48...
fxe4 {[%clk 0:01:21.8]} 49. Qxe4 {[%clk 0:00:22.3]} 49... Qxc3 {[%clk 0:01:18]}
50. Bd1 {[%clk 0:00:22.7]} 50... Bf5 {[%clk 0:01:16.9]} 51. Qe2 {[%clk 0:00:23]}
51... Qd4+ {[%clk 0:01:17.9]} 52. Kh1 {[%clk 0:00:23]} 52... Bd3 {[%clk
0:01:18.8]} 0-1

[Event "*** Titled Tuesday Blitz"]
[Site "Chess.com"]
[Date "2019.05.07"]
[Round "3"]
[White "checkmatequen"]
[Black "fidezivkovic"]
[Result "0-1"]
[WhiteElo "2182"]
[BlackElo "2300"]
[TimeControl "180+2"]
[EndTime "13:39:12 PDT"]
[Termination "fidezivkovic won by checkmate"]

1. e4 {[%clk 0:03:01.9]} 1... c5 {[%clk 0:03:00]} 2. Nf3 {[%clk 0:03:02.5]} 2...
g6 {[%clk 0:03:00]} 3. d4 {[%clk 0:03:00.6]} 3... cxd4 {[%clk 0:03:00.3]} 4.
Nxd4 {[%clk 0:03:02.5]} 4... Nc6 {[%clk 0:03:00]} 5. Nc3 {[%clk 0:03:02.7]} 5...
Bg7 {[%clk 0:02:59.4]} 6. Be3 {[%clk 0:03:02.9]} 6... Nf6 {[%clk 0:02:59.7]} 7.
Bc4 {[%clk 0:03:02.7]} 7... Qa5 {[%clk 0:02:58.8]} 8. O-O {[%clk 0:03:01.3]}
8... O-O {[%clk 0:02:57.6]} 9. Bb3 {[%clk 0:03:02]} 9... d6 {[%clk 0:02:57.4]}
10. h3 {[%clk 0:03:01.5]} 10... Bd7 {[%clk 0:02:58.1]} 11. f4 {[%clk 0:03:02.1]}
11... Qh5 {[%clk 0:02:55.3]} 12. Qd3 {[%clk 0:02:53.4]} 12... b5 {[%clk
0:02:54.9]} 13. a3 {[%clk 0:02:44.4]} 13... b4 {[%clk 0:02:49.1]} 14. axb4
{[%clk 0:02:43.7]} 14... Nxb4 {[%clk 0:02:49.2]} 15. Qd2 {[%clk 0:02:44.4]}
15... a5 {[%clk 0:02:37.4]} 16. Rf3 {[%clk 0:02:38.7]} 16... Rfc8 {[%clk
0:02:23.8]} 17. g4 {[%clk 0:02:32.9]} 17... Nxg4 {[%clk 0:01:50.5]} 18. hxg4
{[%clk 0:02:30.6]} 18... Bxg4 {[%clk 0:01:50.5]} 19. Rg3 {[%clk 0:02:28.8]}
19... e5 {[%clk 0:01:45.7]} 20. Ndb5 {[%clk 0:02:15.9]} 20... d5 {[%clk
0:01:29.8]} 21. Nxd5 {[%clk 0:02:01.1]} 21... Nxd5 {[%clk 0:01:29.1]} 22. Bxd5
{[%clk 0:02:03]} 22... Rab8 {[%clk 0:01:24.5]} 23. Nd6 {[%clk 0:02:01.7]} 23...
Rc7 {[%clk 0:01:20.7]} 24. c4 {[%clk 0:01:47.5]} 24... exf4 {[%clk 0:01:18]} 25.
Rg2 {[%clk 0:01:06.6]} 25... fxe3 {[%clk 0:01:10.5]} 26. Qxe3 {[%clk 0:01:08.5]}
26... Be6 {[%clk 0:00:59.2]} 27. Bxe6 {[%clk 0:01:01]} 27... fxe6 {[%clk
0:00:59.5]} 28. Rf1 {[%clk 0:00:51.2]} 28... Bxb2 {[%clk 0:00:56]} 29. Qf4
{[%clk 0:00:42.6]} 29... Qe5 {[%clk 0:00:53.4]} 30. Qxe5 {[%clk 0:00:34.7]}
30... Bxe5 {[%clk 0:00:53.3]} 31. Nf7 {[%clk 0:00:34.9]} 31... Rxf7 {[%clk
0:00:52.8]} 32. Rxf7 {[%clk 0:00:36.2]} 32... Kxf7 {[%clk 0:00:53]} 33. Ra2
{[%clk 0:00:37.5]} 33... Ra8 {[%clk 0:00:53.2]} 34. Kf2 {[%clk 0:00:37.7]} 34...
a4 {[%clk 0:00:53.6]} 35. Ke3 {[%clk 0:00:37.9]} 35... a3 {[%clk 0:00:53.5]} 36.
Kd3 {[%clk 0:00:38]} 36... Bb2 {[%clk 0:00:52.1]} 37. c5 {[%clk 0:00:38.2]}
37... Ke7 {[%clk 0:00:52.4]} 38. Kc4 {[%clk 0:00:38.6]} 38... Kd7 {[%clk
0:00:52.8]} 39. Kb5 {[%clk 0:00:38.9]} 39... Rb8+ {[%clk 0:00:53.2]} 40. Kc4
{[%clk 0:00:38.5]} 40... Kc6 {[%clk 0:00:53]} 41. e5 {[%clk 0:00:37]} 41... Rb7
{[%clk 0:00:52.6]} 42. Kd3 {[%clk 0:00:36.7]} 42... Kxc5 {[%clk 0:00:50]} 43.
Kc2 {[%clk 0:00:37.2]} 43... Kc4 {[%clk 0:00:50.1]} 44. Kb1 {[%clk 0:00:37.4]}
44... Rf7 {[%clk 0:00:49.8]} 45. Kc2 {[%clk 0:00:37.5]} 45... Rf2+ {[%clk
0:00:49.6]} 46. Kb1 {[%clk 0:00:37.9]} 46... Kb3 {[%clk 0:00:48]} 47. Rxa3+
{[%clk 0:00:32.7]} 47... Bxa3 {[%clk 0:00:46.7]} 48. Ka1 {[%clk 0:00:33.4]}
48... Rf1# {[%clk 0:00:46.4]} 0-1

[Event "*** Titled Tuesday Blitz"]
[Site "Chess.com"]
[Date "2019.05.07"]
[Round "3"]
[White "Vusatiuk_Vladimir"]
[Black "WeAintSurePal"]
[Result "1/2-1/2"]
[WhiteElo "2151"]
[BlackElo "2209"]
[TimeControl "180+2"]
[EndTime "13:39:12 PDT"]
[Termination "Game drawn by agreement"]

1. e4 {[%clk 0:03:01.9]} 1... c6 {[%clk 0:02:58.9]} 2. d4 {[%clk 0:03:02.5]}
2... d5 {[%clk 0:03:00]} 3. e5 {[%clk 0:03:04.1]} 3... c5 {[%clk 0:02:59.9]} 4.
dxc5 {[%clk 0:03:04.4]} 4... Nc6 {[%clk 0:02:59.5]} 5. a3 {[%clk 0:03:05.8]}
5... Nxe5 {[%clk 0:02:45.8]} 6. b4 {[%clk 0:03:07.1]} 6... Nf6 {[%clk
0:02:45.8]} 7. Bb2 {[%clk 0:03:08]} 7... Ng6 {[%clk 0:02:45.5]} 8. Nf3 {[%clk
0:03:08.3]} 8... Bg4 {[%clk 0:02:46.3]} 9. c4 {[%clk 0:03:00.2]} 9... dxc4
{[%clk 0:02:41.8]} 10. Qxd8+ {[%clk 0:02:50.5]} 10... Rxd8 {[%clk 0:02:43.7]}
11. Bxc4 {[%clk 0:02:44.6]} 11... Nf4 {[%clk 0:02:27]} 12. O-O {[%clk
0:02:38.5]} 12... Bxf3 {[%clk 0:02:05.8]} 13. gxf3 {[%clk 0:02:40.4]} 13... e6
{[%clk 0:02:06.6]} 14. Bb5+ {[%clk 0:02:37.6]} 14... Nd7 {[%clk 0:02:06.1]} 15.
Rd1 {[%clk 0:02:35.1]} 15... a6 {[%clk 0:02:07.1]} 16. Ba4 {[%clk 0:02:35.7]}
16... Be7 {[%clk 0:02:01.5]} 17. Be5 {[%clk 0:02:36.3]} 17... Nd5 {[%clk
0:01:57.7]} 18. Nc3 {[%clk 0:02:32.4]} 18... O-O {[%clk 0:01:52.8]} 19. Nxd5
{[%clk 0:02:27.7]} 19... exd5 {[%clk 0:01:53.8]} 20. Bc7 {[%clk 0:02:23.4]}
20... Rc8 {[%clk 0:01:52.7]} 21. Bxd7 {[%clk 0:02:21]} 21... Rxc7 {[%clk
0:01:53.5]} 22. Rxd5 {[%clk 0:02:22.5]} 22... Rd8 {[%clk 0:01:54.1]} 23. Rad1
{[%clk 0:02:23.3]} 23... a5 {[%clk 0:01:53.7]} 24. Bf5 {[%clk 0:02:11.7]} 24...
Rxd5 {[%clk 0:01:53]} 25. Rxd5 {[%clk 0:02:13.6]} 25... g6 {[%clk 0:01:54.5]}
26. Bb1 {[%clk 0:02:09.7]} 26... Bf6 {[%clk 0:01:50.7]} 27. Rd6 {[%clk
0:01:08.2]} 27... Be5 {[%clk 0:01:47]} 28. Rb6 {[%clk 0:01:03.4]} 28... Bb2
{[%clk 0:01:44.2]} 29. a4 {[%clk 0:00:30.1]} 29... axb4 {[%clk 0:01:44.5]} 30.
Rxb4 {[%clk 0:00:32]} 30... Ba3 {[%clk 0:01:44.4]} 31. Rb5 {[%clk 0:00:33]}
31... Bxc5 {[%clk 0:01:43.4]} 32. Be4 {[%clk 0:00:34.3]} 32... b6 {[%clk
0:01:43.7]} 33. Rb1 {[%clk 0:00:33.1]} 33... Rd7 {[%clk 0:01:41.8]} 34. Rb2
{[%clk 0:00:30.8]} 34... h5 {[%clk 0:01:39.7]} 35. Kg2 {[%clk 0:00:31.6]} 35...
Kg7 {[%clk 0:01:40]} 36. Bc6 {[%clk 0:00:32.7]} 36... Rd6 {[%clk 0:01:39.8]} 37.
Be4 {[%clk 0:00:32.8]} 37... h4 {[%clk 0:01:39.4]} 38. Kh3 {[%clk 0:00:32.1]}
38... f5 {[%clk 0:01:39.7]} 39. Bb7 {[%clk 0:00:30.8]} 39... g5 {[%clk
0:01:40.2]} 40. f4 {[%clk 0:00:29.8]} 40... g4+ {[%clk 0:01:35.7]} 41. Kxh4
{[%clk 0:00:23.9]} 41... Bd4 {[%clk 0:01:30.5]} 42. Re2 {[%clk 0:00:21.5]} 42...
Bf6+ {[%clk 0:01:30.9]} 43. Kg3 {[%clk 0:00:19.6]} 43... Rd3+ {[%clk 0:01:31.5]}
44. Kg2 {[%clk 0:00:20.6]} 44... Rd4 {[%clk 0:01:29.7]} 45. Bc6 {[%clk
0:00:21.5]} 45... Rxf4 {[%clk 0:01:27.9]} 46. Bd7 {[%clk 0:00:22.7]} 46... Rd4
{[%clk 0:01:27.2]} 47. Bxf5 {[%clk 0:00:14.8]} 47... Rxa4 {[%clk 0:01:26.6]} 48.
Re4 {[%clk 0:00:16.4]} 48... Rxe4 {[%clk 0:01:26]} 49. Bxe4 {[%clk 0:00:18.3]}
49... Kh6 {[%clk 0:01:27.1]} 50. Bc6 {[%clk 0:00:17.5]} 50... Kg5 {[%clk
0:01:28]} 51. h3 {[%clk 0:00:18.1]} 51... gxh3+ {[%clk 0:01:27.4]} 52. Kxh3
{[%clk 0:00:20]} 52... Kf4 {[%clk 0:01:28.5]} 53. Kg2 {[%clk 0:00:20.7]} 53...
Bd4 {[%clk 0:01:29.9]} 54. f3 {[%clk 0:00:21.5]} 54... Bc5 {[%clk 0:01:27.6]}
55. Kf1 {[%clk 0:00:21.5]} 1/2-1/2